bitfinex/quotes_SOLUSD_20220207
["timestamp","ask_amount","ask_price","bid_price","bid_amount"]
[1644199550434,40.2294,114.21,114.12,55.75808792]
[1644199550435,37.08116759,114.21,114.12,55.75808792]
[1644199551126,34.22299494,114.2,114.12,42.61488792]
[1644199551326,47.36659494,114.2,114.12,55.75848792]
[1644199551825,23.93796759,114.21,114.12,55.75848792]
[1644199552028,22.7082,114.21,114.13,2.06642629]
[1644199552227,22.7082,114.21,114.13,14.70642629]
[1644199552426,22.7082,114.21,114.13,20.70642629]
[1644199552827,59.59981162,114.21,114.14,40.53941189]
[1644199553028,59.59981162,114.21,114.15,13.1396]
[1644199553228,59.59981162,114.21,114.16,43.30650006]
[1644199553828,36.89161162,114.21,114.16,43.30650006]
[1644199554232,50.03381162,114.21,114.13,36.7116]
[1644199554831,51.26357921,114.21,114.13,23.5702]
[1644199555435,51.26357921,114.21,114.14,38.14252861]
[1644199555832,50.03381162,114.21,114.14,38.14252861]
[1644199556532,51.26357921,114.21,114.14,38.14252861]
[1644199556735,51.26357921,114.21,114.14,44.14252861]
[1644199559736,14.37196759,114.21,114.14,44.39252861]
[1644199559934,14.37086759,114.22,114.14,57.53372861]
[1644199560138,1.22976759,114.23,114.14,57.53372861]
[1644199560338,1.22976759,114.23,114.15,23.176]
[1644199560535,1.22976759,114.24,114.15,23.176]
[1644199560737,43.46063259,114.23,114.16,38.87623262]
[1644199561137,43.71063259,114.23,114.16,45.12623262]
[1644199561336,43.71063259,114.23,114.16,6.0]
[1644199561536,58.08060018,114.23,114.16,6.0]
[1644199561736,58.08060018,114.23,114.15,29.176]
[1644199561939,1.22976759,114.22,114.15,6.0]
[1644199562137,1.22976759,114.22,114.12,47.861]
[1644199562336,46.79007093,114.21,114.13,38.45364973]
[1644199562538,59.93337093,114.21,114.13,38.45364973]
[1644199562739,59.93337093,114.21,114.13,44.70364973]
[1644199566545,61.16313852,114.21,114.13,44.70364973]
[1644199567344,59.93337093,114.21,114.13,44.70364973]
[1644199568347,60.18337093,114.21,114.13,44.70364973]
[1644199569750,13.3933,114.21,114.13,44.70364973]
[1644199569948,0.25,114.21,114.13,70.48564973]
[1644199570356,23.8991,114.22,114.13,70.48564973]
[1644199570548,23.8991,114.22,114.14,24.669]
[1644199570749,23.8991,114.22,114.15,37.28963721]
[1644199571249,23.8991,114.22,114.15,43.53963721]
[1644199572049,25.12886759,114.22,114.15,56.67943721]
[1644199574254,38.92028908,114.21,114.15,56.67943721]
[1644199576377,39.17028908,114.21,114.15,56.67943721]
[1644199581286,0.25,114.21,114.15,56.67943721]
[1644199581483,24.87886759,114.22,114.15,56.67943721]
[1644199581784,24.87886759,114.22,114.15,69.31943721]
[1644199582083,1.22976759,114.23,114.15,69.31943721]
[1644199582284,55.98796849,114.24,114.15,69.31943721]
[1644199582885,55.98796849,114.24,114.17,39.32089744]
[1644199583284,55.98796849,114.24,114.17,39.57089744]
[1644199583484,55.98796849,114.24,114.17,39.32089744]
[1644199583688,1.22976759,114.23,114.17,39.32089744]
[1644199583886,40.72975825,114.22,114.17,39.32089744]
[1644199584887,40.72975825,114.22,114.16,24.5115]
[1644199585087,40.72975825,114.22,114.13,12.64]
[1644199585088,53.87105825,114.22,114.13,13.1423]
[1644199585291,56.05789742,114.22,114.12,23.0509]
[1644199585489,1.22976759,114.21,114.12,23.0509]
[1644199585690,24.92306759,114.21,114.12,23.0509]
[1644199585891,24.92306759,114.21,114.13,39.46509965]
[1644199586290,1.22976759,114.21,114.14,13.1411]
[1644199586495,1.22976759,114.22,114.14,13.1411]
[1644199586692,1.22976759,114.22,114.15,22.7759]
[1644199587093,1.22976759,114.23,114.16,40.47107231]
[1644199587293,1.22976759,114.24,114.17,13.1377]
[1644199587493,1.22976759,114.24,114.17,35.9136]
[1644199587695,1.22976759,114.24,114.17,42.1636]
[1644199588296,1.22976759,114.24,114.18,47.31148833]
[1644199588497,47.07116929,114.25,114.18,47.31148833]
[1644199588696,1.22976759,114.24,114.18,47.56148833]
[1644199589098,47.32116929,114.25,114.18,47.56148833]
[1644199589899,60.45886929,114.25,114.18,47.31148833]
[1644199590102,1.22976759,114.23,114.18,47.31148833]
[1644199590598,1.22976759,114.24,114.18,47.31148833]
[1644199591399,36.92313839,114.23,114.18,47.31148833]
[1644199591600,38.15290598,114.23,114.18,47.31148833]
[1644199592099,1.22976759,114.23,114.18,47.31148833]
[1644199592300,1.47976759,114.23,114.18,47.31148833]
[1644199594501,1.22976759,114.23,114.18,47.31148833]
[1644199594700,1.22976759,114.24,114.18,47.31148833]
[1644199594900,0.25,114.23,114.18,47.31148833]
[1644199595132,1.22976759,114.24,114.18,47.31148833]
[1644199595505,1.47976759,114.24,114.18,47.31148833]
[1644199596703,1.47976759,114.24,114.18,53.31148833]
[1644199597105,39.70025512,114.23,114.18,47.31148833]
[1644199598303,39.70025512,114.23,114.16,24.2691]
[1644199598505,52.84055512,114.23,114.16,24.2691]
[1644199598703,1.22976759,114.22,114.15,24.7623]
[1644199598903,1.22976759,114.22,114.15,30.7623]
[1644199599304,36.1070991,114.21,114.16,40.75781338]
[1644199599605,49.2502991,114.21,114.16,40.75781338]
[1644199600004,49.2502991,114.21,114.15,24.7623]
[1644199600206,49.5002991,114.21,114.14,23.8345]
[1644199600405,50.73006669,114.21,114.14,23.8345]
[1644199600606,58.94506669,114.21,114.14,23.8345]
[1644199601004,58.94506669,114.21,114.14,67.26894993]
[1644199602505,58.94506669,114.21,114.11,13.1446]
[1644199602706,83.09776669,114.21,114.1,47.12220416]
[1644199602906,13.1479,114.17,114.1,45.9057]
[1644199603508,47.63031652,114.16,114.1,84.50884934]
[1644199604810,23.0168,114.18,114.1,84.50884934]
[1644199605209,1.22976759,114.19,114.1,84.50884934]
[1644199605210,1.22976759,114.2,114.1,90.75884934]
[1644199605410,57.71656759,114.21,114.11,2.05644308]
[1644199605612,57.71656759,114.21,114.11,8.05644308]
[1644199605810,102.06774261,114.21,114.12,64.56759191]
[1644199606014,115.21014261,114.21,114.13,13.1424]
[1644199606211,113.98037502,114.21,114.14,45.41189845]
[1644199606611,113.98037502,114.21,114.14,51.66189845]
[1644199606811,113.98037502,114.21,114.14,45.66189845]
[1644199606812,21.6074,114.21,114.14,45.66189845]
[1644199607014,8.215,114.21,114.14,64.80239845]
[1644199607613,8.215,114.21,114.15,12.64]
[1644199607814,8.215,114.21,114.16,48.51695652]
[1644199608014,8.215,114.21,114.16,61.65495652]
[1644199608216,8.215,114.21,114.16,61.90495652]
[1644199608817,8.215,114.21,114.17,12.64]
[1644199609218,8.215,114.21,114.17,26.0268]
[1644199609419,8.215,114.21,114.17,32.0268]
[1644199609617,8.215,114.21,114.18,46.67814618]
[1644199610017,8.215,114.21,114.18,52.67814618]
[1644199610841,6.06439994,114.2,114.18,52.67814618]
[1644199611139,3.03219997,114.2,114.15,36.6301]
[1644199611339,8.215,114.21,114.15,36.8801]
[1644199611540,8.215,114.21,114.15,42.8801]
[1644199611737,1.22976759,114.24,114.15,42.8801]
[1644199611938,43.21861331,114.23,114.16,46.74408351]
[1644199612139,1.22976759,114.24,114.16,52.74408351]
[1644199612338,1.22976759,114.24,114.17,23.6742]
[1644199612540,14.36846759,114.25,114.17,23.6742]
[1644199612740,14.36846759,114.25,114.17,23.9242]
[1644199613342,47.99332242,114.24,114.18,48.56883458]
[1644199614040,49.22309001,114.24,114.18,48.56883458]
[1644199614239,62.36229001,114.24,114.18,48.56883458]
[1644199614439,1.22976759,114.23,114.18,48.56883458]
[1644199614639,39.16294314,114.22,114.18,48.56883458]
[1644199614841,1.22976759,114.23,114.18,48.56883458]
[1644199615039,1.47976759,114.24,114.18,48.56883458]
[1644199615840,39.88616864,114.24,114.18,48.56883458]
[1644199616041,53.02506864,114.24,114.18,48.56883458]
[1644199616439,14.36866759,114.24,114.18,48.56883458]
[1644199616639,13.1389,114.24,114.18,48.56883458]
[1644199617041,14.36866759,114.24,114.18,48.56883458]
[1644199617440,51.03275332,114.24,114.18,48.56883458]
[1644199618246,51.28275332,114.24,114.18,48.56883458]
[1644199621456,50.05298573,114.24,114.18,48.56883458]
[1644199621654,51.28275332,114.24,114.17,23.6742]
[1644199622256,1.22976759,114.23,114.15,29.0811]
[1644199622454,13.1415,114.22,114.15,29.0811]
[1644199622656,14.37126759,114.22,114.15,29.0811]
[1644199622855,38.34641314,114.21,114.15,29.0811]
[1644199623055,38.34641314,114.21,114.15,4.377]
[1644199624057,44.46040284,114.19,114.15,4.377]
[1644199625157,13.1437,114.2,114.15,4.377]
[1644199625357,13.1437,114.2,114.14,66.12551201]
[1644199625558,23.4047,114.21,114.14,66.37551201]
[1644199626160,0.25,114.21,114.14,79.51681201]
[1644199626558,1.22976759,114.23,114.14,85.51681201]
[1644199626763,1.22976759,114.23,114.14,87.57616876]
[1644199626961,51.91826759,114.24,114.14,87.57616876]
[1644199627560,40.61665671,114.23,114.14,87.57616876]
[1644199628460,40.61665671,114.23,114.14,85.51681201]
[1644199628660,54.9864243,114.23,114.14,85.51681201]
[1644199629063,46.70375934,114.21,114.14,85.51681201]
[1644199629660,46.70375934,114.21,114.14,85.26681201]
[1644199629861,59.84595934,114.21,114.14,66.12551201]
[1644199630263,60.09595934,114.21,114.14,66.12551201]
[1644199630763,60.09595934,114.21,114.14,66.37551201]
[1644199632668,46.95375934,114.21,114.14,79.51651201]
[1644199633266,0.25,114.21,114.14,79.51651201]
[1644199633665,1.22976759,114.23,114.14,79.51651201]
[1644199633867,1.22976759,114.23,114.14,85.51651201]
[1644199634269,39.47872339,114.23,114.14,85.51651201]
[1644199634669,36.35215257,114.21,114.14,85.51651201]
[1644199634869,36.35215257,114.21,114.14,79.51651201]
[1644199635069,36.60215257,114.21,114.14,79.51651201]
[1644199635270,0.25,114.21,114.14,66.37551201]
[1644199635471,0.25,114.21,114.14,74.43486876]
[1644199635670,1.22976759,114.23,114.14,74.43486876]
[1644199635870,1.22976759,114.23,114.14,87.07486876]
[1644199636070,12.8933,114.24,114.15,4.378]
[1644199636269,12.8933,114.24,114.18,38.83337588]
[1644199636672,12.8933,114.24,114.18,45.08337588]
[1644199636871,35.8133807,114.25,114.18,45.08337588]
[1644199637272,35.8133807,114.25,114.18,44.83337588]
[1644199638272,1.22976759,114.24,114.18,6.0]
[1644199638671,1.22976759,114.24,114.17,29.6252]
[1644199639071,1.22976759,114.24,114.17,42.7629]
[1644199639273,1.22976759,114.24,114.18,44.55018826]
[1644199639475,35.13145176,114.23,114.18,44.55018826]
[1644199640076,35.13145176,114.23,114.18,50.55018826]
[1644199640285,0.25,114.23,114.18,50.55018826]
[1644199640681,1.22976759,114.24,114.18,50.55018826]
[1644199640883,1.47976759,114.24,114.18,50.55018826]
[1644199641082,1.22976759,114.24,114.18,63.68688826]
[1644199641283,44.59592595,114.23,114.18,63.68688826]
[1644199641891,1.47976759,114.24,114.18,63.68688826]
[1644199642090,0.25,114.24,114.18,63.68688826]
[1644199642289,0.25,114.24,114.18,63.93688826]
[1644199642892,43.53934955,114.25,114.18,63.93688826]
[1644199646609,43.78934955,114.25,114.18,63.93688826]
[1644199648311,43.78934955,114.25,114.18,50.55018826]
[1644199648512,43.78934955,114.25,114.18,44.55018826]
[1644199648713,41.66023631,114.23,114.18,44.55018826]
[1644199650315,41.91023631,114.23,114.18,44.55018826]
[1644199651716,41.91023631,114.23,114.17,36.7629]
[1644199651914,41.91023631,114.23,114.17,23.6252]
[1644199652117,41.91023631,114.23,114.15,13.139]
[1644199652316,41.91023631,114.23,114.15,38.2965]
[1644199652515,43.1400039,114.23,114.15,38.2965]
[1644199652715,43.1400039,114.23,114.16,37.52878646]
[1644199652915,56.2801039,114.23,114.16,37.52878646]
[1644199653517,56.2801039,114.23,114.15,38.0465]
[1644199653717,1.22976759,114.22,114.14,22.7731]
[1644199654117,16.55990676,114.21,114.12,23.324]
[1644199654517,37.39998484,114.2,114.12,59.65270068]
[1644199655924,13.1447,114.19,114.12,59.65270068]
[1644199656123,40.10018853,114.18,114.12,59.65270068]
[1644199661233,0.25,114.18,114.12,73.04630068]
[1644199661435,36.416,114.19,114.12,73.04630068]
[1644199661634,14.37306759,114.21,114.12,72.79630068]
[1644199661834,13.1433,114.21,114.12,73.04630068]
[1644199662034,14.37306759,114.21,114.12,73.04630068]
[1644199662234,44.24189788,114.2,114.12,73.04630068]
[1644199662663,44.24189788,114.2,114.12,72.79630068]
[1644199662865,44.49189788,114.2,114.12,72.79630068]
[1644199663762,57.63559788,114.2,114.12,23.324]
[1644199663967,57.63559788,114.2,114.1,25.7848]
[1644199663968,57.63559788,114.2,114.1,13.1448]
[1644199664164,24.4086,114.19,114.1,13.1448]
[1644199664567,19.4086,114.19,114.1,13.1448]
[1644199664765,55.79401003,114.18,114.09,42.66455478]
[1644199664968,55.79401003,114.18,114.07,43.25305466]
[1644199664969,55.79401003,114.18,114.08,37.1834]
[1644199665268,24.398,114.17,114.08,24.0363]
[1644199665565,24.398,114.17,114.08,30.0363]
[1644199665970,36.89982707,114.14,114.08,30.0363]
[1644199667767,36.89982707,114.14,114.08,77.30923413]
[1644199668466,36.89982707,114.14,114.08,30.0363]
[1644199670767,36.89982707,114.14,114.08,30.01232]
[1644199670970,36.89982707,114.14,114.08,72.4025573]
[1644199671172,50.05002707,114.14,114.08,30.01232]
[1644199671969,50.30002707,114.14,114.08,30.01232]
[1644199673570,13.4002,114.14,114.09,41.43189184]
[1644199674171,13.1489,114.16,114.09,41.68189184]
[1644199674572,13.1489,114.16,114.09,41.43189184]
[1644199674770,47.3728758,114.15,114.09,41.43189184]
[1644199675374,48.2134,114.18,114.09,41.68189184]
[1644199675571,0.25,114.15,114.09,41.68189184]
[1644199675772,44.0824,114.18,114.09,41.68189184]
[1644199675974,48.4624,114.18,114.09,41.68189184]
[1644199676373,46.45653412,114.17,114.09,41.68189184]
[1644199676573,59.60353412,114.17,114.09,60.57889184]
[1644199676874,59.60353412,114.17,114.09,41.43189184]
[1644199677772,59.85353412,114.17,114.09,41.43189184]
[1644199678372,59.60353412,114.17,114.09,41.43189184]
[1644199679174,59.60353412,114.17,114.08,24.01232]
[1644199679374,59.60353412,114.17,114.08,24.26232]
[1644199679775,59.85353412,114.17,114.08,24.26232]
[1644199680377,59.85353412,114.17,114.09,47.77608974]
[1644199684879,73.06733412,114.17,114.09,47.77608974]
[1644199688984,59.85353412,114.17,114.09,47.77608974]
[1644199689180,59.85353412,114.17,114.1,24.8032]
[1644199689381,59.85353412,114.17,114.11,35.41783135]
[1644199689581,46.70653412,114.17,114.11,35.41783135]
[1644199689781,0.25,114.17,114.11,35.66783135]
[1644199690182,24.2056,114.18,114.11,35.66783135]
[1644199690581,1.22976759,114.19,114.11,35.66783135]
[1644199690781,47.14742876,114.19,114.11,35.66783135]
[1644199690984,1.22976759,114.19,114.11,35.66783135]
[1644199691182,1.22976759,114.19,114.12,2.0652505]
[1644199691384,6.87022781,114.23,114.13,12.64]
[1644199691385,1.22976759,114.2,114.13,12.64]
[1644199691583,2.49022781,114.23,114.13,18.64]
[1644199691584,1.22976759,114.23,114.13,18.64]
[1644199691787,1.22976759,114.24,114.14,6.4432505]
[1644199691986,39.45607217,114.23,114.15,34.58734931]
[1644199692189,40.68583976,114.23,114.15,47.72714931]
[1644199692389,40.68583976,114.23,114.15,47.97714931]
[1644199692588,1.22976759,114.22,114.13,18.64]
[1644199692787,25.72516759,114.22,114.13,18.89]
[1644199692988,1.22976759,114.21,114.13,18.89]
[1644199693388,25.72516759,114.22,114.13,32.0315]
[1644199693591,1.22976759,114.22,114.14,45.22143815]
[1644199693791,1.22976759,114.22,114.14,45.47143815]
[1644199693994,1.47976759,114.22,114.14,51.47143815]
[1644199694195,0.25,114.22,114.14,51.47143815]
[1644199694395,46.28124564,114.21,114.14,51.47143815]
[1644199694798,46.28124564,114.21,114.14,64.11143815]
[1644199694996,46.28124564,114.21,114.16,38.67437729]
[1644199695195,46.28124564,114.21,114.16,38.92437729]
[1644199695796,1.22976759,114.23,114.16,38.92437729]
[1644199695996,1.22976759,114.23,114.16,52.06297729]
[1644199696197,1.22976759,114.23,114.16,58.06297729]
[1644199696422,1.22976759,114.23,114.16,52.06297729]
[1644199696616,1.22976759,114.24,114.16,52.06297729]
[1644199696816,40.81504128,114.23,114.16,52.06297729]
[1644199697219,41.06504128,114.23,114.16,52.06297729]
[1644199698020,0.25,114.23,114.16,52.06297729]
[1644199698321,1.22976759,114.24,114.16,52.06297729]
[1644199698322,0.25,114.24,114.16,52.06297729]
[1644199698722,39.39686759,114.25,114.16,58.06297729]
[1644199698920,35.35330306,114.24,114.16,58.06297729]
[1644199704024,35.35330306,114.24,114.16,82.93787729]
[1644199704327,35.60330306,114.24,114.16,82.93787729]
[1644199705926,0.25,114.24,114.16,82.93787729]
[1644199706330,37.9171,114.25,114.16,82.93787729]
[1644199706928,47.15927498,114.24,114.16,82.93787729]
[1644199709834,47.40927498,114.24,114.16,82.93787729]
[1644199714934,48.63904257,114.24,114.16,82.93787729]
[1644199716639,61.77844257,114.24,114.16,30.8749]
[1644199716836,1.22976759,114.23,114.16,6.0]
[1644199717040,1.22976759,114.22,114.16,6.0]
[1644199717237,1.22976759,114.21,114.12,29.2145]
[1644199717637,44.22821346,114.2,114.13,43.68021938]
[1644199718036,44.22821346,114.2,114.13,63.07201938]
[1644199718638,14.37196759,114.22,114.13,63.07201938]
[1644199718839,14.37196759,114.22,114.14,24.7808]
[1644199719242,14.37016759,114.23,114.14,44.1715]
[1644199719441,1.22976759,114.22,114.14,44.1715]
[1644199719641,36.22758747,114.22,114.14,44.1715]
[1644199720242,36.47758747,114.22,114.14,44.1715]
[1644199721749,1.47976759,114.22,114.14,44.1715]
[1644199721946,0.25,114.22,114.14,44.1715]
[1644199722346,1.22976759,114.23,114.14,44.1715]
[1644199722546,1.22976759,114.23,114.14,48.5495]
[1644199722745,39.52341462,114.23,114.14,48.5495]
[1644199723347,1.22976759,114.22,114.14,48.5495]
[1644199723546,24.14346759,114.22,114.14,48.2995]
[1644199723746,1.22976759,114.21,114.14,48.2995]
[1644199723947,1.22976759,114.21,114.14,42.2995]
[1644199724647,24.14346759,114.22,114.14,42.2995]
[1644199724847,24.14346759,114.22,114.14,42.5495]
[1644199725450,24.14346759,114.22,114.14,48.5495]
[1644199725749,24.39346759,114.22,114.14,38.1715]
[1644199725949,24.39346759,114.22,114.14,37.9215]
[1644199726550,1.22976759,114.21,114.14,43.9215]
[1644199726750,1.22976759,114.21,114.14,37.9215]
[1644199727251,1.22976759,114.21,114.14,44.1715]
[1644199727451,24.39346759,114.22,114.14,58.87319633]
[1644199727757,1.47976759,114.22,114.14,58.87319633]
[1644199727951,0.25,114.22,114.14,58.87319633]
[1644199728551,1.22976759,114.23,114.14,58.87319633]
[1644199729553,1.47976759,114.23,114.14,58.87319633]
[1644199732575,1.47976759,114.23,114.14,44.1715]
[1644199732774,1.22976759,114.22,114.14,44.1715]
[1644199733974,36.65692416,114.21,114.14,44.1715]
[1644199734574,1.22976759,114.22,114.14,44.1715]
[1644199734780,24.19616759,114.22,114.14,44.1715]
[1644199735975,37.58776759,114.22,114.14,30.7808]
[1644199736175,1.22976759,114.21,114.13,43.68021938]
[1644199736376,1.22976759,114.21,114.14,23.2427]
[1644199738676,1.22976759,114.21,114.14,29.2427]
[1644199738877,1.22976759,114.22,114.14,29.4927]
[1644199739076,1.22976759,114.22,114.14,42.6337]
[1644199739277,1.22976759,114.23,114.14,42.6337]
[1644199739678,1.22976759,114.23,114.15,2.06169633]
[1644199739881,1.22976759,114.23,114.15,45.84719633]
[1644199740179,1.22976759,114.23,114.17,39.39579175]
[1644199740379,1.47976759,114.23,114.18,24.8486]
[1644199740580,1.22976759,114.23,114.18,37.9842]
[1644199740979,1.47976759,114.23,114.18,37.9842]
[1644199741181,1.22976759,114.23,114.18,37.9842]
[1644199741581,1.47976759,114.23,114.18,43.9842]
[1644199741781,1.47976759,114.23,114.18,37.9842]
[1644199742388,1.47976759,114.23,114.18,43.9842]
[1644199742582,1.47976759,114.23,114.18,37.9842]
[1644199743783,0.25,114.23,114.18,37.9842]
[1644199744184,1.22976759,114.24,114.18,37.9842]
[1644199744586,1.22976759,114.23,114.18,37.9842]
[1644199744988,1.22976759,114.24,114.18,37.9842]
[1644199745188,1.22976759,114.25,114.18,37.9842]
[1644199745587,1.22976759,114.25,114.18,43.9842]
[1644199746089,1.22976759,114.25,114.18,37.9842]
[1644199747289,1.22976759,114.25,114.18,38.2342]
[1644199748291,1.47976759,114.25,114.18,38.2342]
[1644199748691,1.47976759,114.25,114.18,44.2342]
[1644199749593,0.25,114.25,114.18,44.2342]
[1644199749792,85.07269011,114.26,114.18,44.2342]
[1644199749995,85.32269011,114.26,114.18,44.2342]
[1644199750201,85.32269011,114.26,114.18,38.2342]
[1644199752597,85.32269011,114.26,114.18,44.2342]
[1644199756395,85.32269011,114.26,114.18,43.9842]
[1644199756597,3.41660676,114.25,114.15,43.7855]
[1644199756796,3.41660676,114.25,114.16,13.1378]
[1644199756995,7.79460676,114.24,114.15,6.0]
[1644199757195,1.22976759,114.23,114.14,23.8912]
[1644199757396,38.25871323,114.22,114.15,39.99970661]
[1644199758096,38.25871323,114.22,114.15,64.03970661]
[1644199758898,51.39971323,114.22,114.15,64.03970661]
[1644199760210,51.64971323,114.22,114.15,64.03970661]
[1644199760699,51.64971323,114.22,114.14,23.8912]
[1644199760899,65.51948082,114.22,114.11,17.5216]
[1644199761101,13.1453,114.19,114.11,19.3936]
[1644199761801,44.23762163,114.18,114.12,39.07550082]
[1644199762203,44.23762163,114.18,114.12,45.32550082]
[1644199763407,13.1453,114.19,114.12,58.46890082]
[1644199763607,37.7107,114.21,114.12,58.46890082]
[1644199763807,24.5678,114.21,114.13,23.745]
[1644199764231,1.22976759,114.22,114.13,29.995]
[1644199764534,1.22976759,114.23,114.14,13.1412]
[1644199764731,41.44573036,114.24,114.16,39.45714527]
[1644199765133,41.44573036,114.24,114.16,45.70714527]
[1644199765539,24.75026759,114.25,114.16,45.70714527]
[1644199765733,24.75026759,114.25,114.18,13.1365]
[1644199766033,23.5205,114.25,114.18,13.1365]
[1644199766239,23.5205,114.25,114.18,19.3865]
[1644199766534,59.70888336,114.26,114.18,19.3865]
[1644199766732,59.95888336,114.26,114.18,19.3865]
[1644199769942,73.09558336,114.26,114.18,19.1365]
[1644199770147,73.09558336,114.26,114.17,23.0608]
[1644199770341,1.22976759,114.25,114.16,39.45714527]
[1644199770548,1.22976759,114.24,114.16,45.45714527]
[1644199771046,1.22976759,114.24,114.16,45.70714527]
[1644199772045,13.1403,114.23,114.16,45.70714527]
[1644199772243,42.46371099,114.22,114.16,45.70714527]
[1644199774045,42.46371099,114.22,114.16,58.84584527]
[1644199780653,42.71371099,114.22,114.16,58.84584527]
[1644199782680,42.71371099,114.22,114.16,6.0]
[1644199783058,42.71371099,114.22,114.14,29.1257]
[1644199783258,43.94347858,114.22,114.14,29.3757]
[1644199783457,43.94347858,114.22,114.14,71.68209191]
[1644199783857,43.94347858,114.22,114.14,71.43209191]
[1644199784058,57.08467858,114.22,114.14,71.43209191]
[1644199784458,57.08467858,114.22,114.14,29.1257]
[1644199784958,57.08467858,114.22,114.14,23.1257]
[1644199788660,57.08467858,114.22,114.14,36.2668]
[1644199788862,43.94347858,114.22,114.14,36.5168]
[1644199789059,42.71371099,114.22,114.14,42.5168]
[1644199789861,43.94347858,114.22,114.14,42.5168]
[1644199790361,42.71371099,114.22,114.14,42.5168]
[1644199791663,55.89281099,114.22,114.14,42.5168]
[1644199797466,57.12257858,114.22,114.14,42.5168]
[1644199799269,70.26377858,114.22,114.14,42.5168]
[1644199799767,70.26377858,114.22,114.14,42.2668]
[1644199799968,1.22976759,114.21,114.14,6.0]
[1644199800170,1.22976759,114.2,114.12,6.0]
[1644199800370,1.22976759,114.2,114.1,6.0]
[1644199800571,1.22976759,114.2,114.09,29.80230416]
[1644199800770,13.1462,114.19,114.1,47.16089304]
[1644199800971,48.12680242,114.18,114.1,47.16089304]
[1644199801170,48.12680242,114.18,114.11,22.5858]
[1644199801573,48.12680242,114.18,114.11,28.8358]
[1644199802574,61.27250242,114.18,114.11,28.8358]
[1644199804385,61.52250242,114.18,114.1,13.1457]
[1644199804582,61.52250242,114.18,114.09,23.2134]
[1644199804784,61.52250242,114.18,114.09,46.3902]
[1644199804785,64.93910918,114.18,114.09,46.3902]
[1644199804983,69.31910918,114.18,114.09,46.3902]
[1644199805200,13.1498,114.15,114.09,46.3902]
[1644199805498,13.1498,114.15,114.09,38.74164203]
[1644199805499,44.63938255,114.14,114.09,38.74164203]
[1644199806499,37.3584,114.16,114.09,38.74164203]
[1644199806700,24.2105,114.16,114.09,44.99164203]
[1644199807300,1.22976759,114.19,114.09,44.99164203]
[1644199807501,24.95306759,114.19,114.1,22.6413]
[1644199807702,1.22976759,114.2,114.1,28.8913]
[1644199807903,1.22976759,114.2,114.1,45.9113]
[1644199808101,1.22976759,114.2,114.1,47.97732767]
[1644199808302,1.22976759,114.21,114.1,47.97732767]
[1644199808503,59.59687704,114.21,114.1,72.76222767]
[1644199808802,59.84687704,114.21,114.1,72.76222767]
[1644199809002,59.84687704,114.21,114.11,13.1437]
[1644199809202,59.59687704,114.21,114.13,43.72137917]
[1644199809606,59.59687704,114.21,114.13,49.97137917]
[1644199810205,59.59687704,114.21,114.14,13.1412]
[1644199810606,59.59687704,114.21,114.14,42.518]
[1644199810805,59.84687704,114.21,114.14,42.768]
[1644199811204,59.84687704,114.21,114.14,36.768]
[1644199811506,72.98927704,114.21,114.13,43.72137917]
[1644199811907,72.98927704,114.21,114.12,13.1424]
[1644199812108,77.36727704,114.21,114.12,13.1424]
[1644199812305,1.22976759,114.2,114.11,23.3903]
[1644199812605,14.37516759,114.19,114.11,23.3903]
[1644199813006,14.37516759,114.19,114.11,62.90070034]
[1644199813606,14.37516759,114.19,114.08,30.1672]
[1644199813807,16.56200676,114.19,114.07,1.21650416]
[1644199814009,13.1504,114.14,114.06,24.331]
[1644199814207,13.1504,114.14,114.06,6.0]
[1644199814610,39.5574709,114.13,114.07,38.08909192]
[1644199815411,39.5574709,114.13,114.06,13.1504]
[1644199815611,39.5574709,114.13,114.06,19.1504]
[1644199816011,52.7090709,114.13,114.06,6.0]
[1644199816211,52.9590709,114.13,114.05,54.8886]
[1644199816411,39.8074709,114.13,114.06,35.31527832]
[1644199816611,39.8074709,114.13,114.06,41.31527832]
[1644199816813,39.8074709,114.13,114.06,41.56527832]
[1644199817413,0.25,114.13,114.06,41.56527832]
[1644199817812,93.27686759,114.17,114.06,41.56527832]
[1644199818013,13.15,114.15,114.06,54.71497832]
[1644199818413,43.28763045,114.14,114.06,54.71497832]
[1644199820614,56.43793045,114.14,114.06,54.71497832]
[1644199821213,56.68793045,114.14,114.06,54.71497832]
[1644199826719,56.68793045,114.14,114.06,6.0]
[1644199826920,13.1533,114.12,114.05,53.2706]
[1644199827118,13.1533,114.12,114.05,48.8886]
[1644199827321,15.34013917,114.12,114.05,48.8886]
[1644199827719,15.34013917,114.12,114.04,35.94203737]